lending/lending_fUSD_20260204
["ID","MTS","AMOUNT","RATE_DAILY","PERIOD"]
[404505208,1770228646650,-1000.0,0.00021316,2]
[404505209,1770228646659,-5000.0,0.00021323,2]
[404505211,1770228646671,-5386.66401066,0.00021323,2]
[404505214,1770228646680,-5000.0,0.00021323,2]
[404505216,1770228646689,-6385.85,0.0002137,2]
[404505218,1770228646699,-1000.0,0.0002137,2]
[404505220,1770228646708,-7309.39789453,0.00021377,2]
[404505222,1770228646717,-2446.571246,0.0002144,7]
[404505224,1770228646727,-1158.285879,0.0002144,7]
[404505225,1770228646736,-233.51889341,0.00021483,2]
[404505227,1770228646745,-57613.40449051,0.000215,2]
[404505229,1770228646754,-222.44213448,0.000215,2]
[404505231,1770228646764,-250.0,0.00021521,2]
[404505233,1770228646773,-200.0,0.00021582,2]
[404505234,1770228646782,-155.0,0.00021599,2]
[404505235,1770228646791,-450.0,0.00021616,2]
[404505236,1770228646800,-450.7476087,0.00021616,2]
[404505237,1770228646809,-708.09663775,0.00021616,2]
[404505238,1770228646819,-1000.0,0.00021644,2]
[404505239,1770228646828,-175.0,0.00021703,120]
[404505249,1770228647014,-584.0,0.00021718,2]
[404505251,1770228647025,-200.0,0.00021744,3]
[404505252,1770228647034,-533.0,0.00021767,5]
[404505253,1770228647044,-152.0,0.00021771,5]
[404505254,1770228647054,-200.0,0.00021802,2]
[404505255,1770228647063,-708.96686584,0.00021808,2]
[404505256,1770228647073,-4000.0,0.00021808,2]
[404505257,1770228647082,-369.5972623,0.00021875,2]
[404505258,1770228647091,-151.45333834,0.00021879,2]
[404505259,1770228647101,-43826.01474545,0.000219,7]
[404505260,1770228647111,-346.7005615,0.00021901,2]
[404505261,1770228647120,-1447.2863035,0.00021901,2]
[404505262,1770228647130,-2000.0,0.00021917,2]
[404505263,1770228647139,-5000.0,0.00021918,2]
[404505264,1770228647149,-151.0,0.00021918,2]
[404505265,1770228647158,-151.0,0.00021918,2]
[404505266,1770228647168,-151.0,0.00021918,2]
[404505267,1770228647177,-151.0,0.00021918,2]
[404505268,1770228647187,-800.0,0.00021918,4]
[404505269,1770228647196,-800.0,0.00021918,4]
[404505270,1770228647206,-800.0,0.00021918,4]
[404505271,1770228647215,-800.0,0.00021918,4]
[404505272,1770228647225,-800.0,0.00021918,4]
[404505273,1770228647234,-800.0,0.00021918,4]
[404505274,1770228647243,-800.0,0.00021918,4]
[404505275,1770228647252,-800.0,0.00021918,4]
[404505276,1770228647261,-800.0,0.00021918,4]
[404505277,1770228647270,-800.0,0.00021918,4]
[404505278,1770228647279,-800.0,0.00021918,4]
[404505279,1770228647288,-800.0,0.00021918,4]
[404505280,1770228647297,-800.0,0.00021918,4]
[404505281,1770228647306,-800.0,0.00021918,4]
[404505282,1770228647315,-800.0,0.00021918,4]
[404505283,1770228647324,-800.0,0.00021918,4]
[404505284,1770228647334,-1000.0,0.00021918,2]
[404505285,1770228647348,-500.0,0.00021918,2]
[404505286,1770228647358,-150.0,0.00021918,2]
[404505287,1770228647367,-500.0,0.00021973,2]
[404505288,1770228647377,-204.45,0.00021973,2]
[404505289,1770228647386,-503.73520595,0.00021999,2]
[404505290,1770228647396,-3004.43795411,0.00022,2]
[404505291,1770228647405,-6508.37,0.00022,2]
[404505292,1770228647416,-163.53,0.00022,2]
[404505293,1770228647425,-160.0,0.00022,2]
[404505294,1770228647435,-517.0,0.00022,6]
[404505295,1770228647444,-799.68296369,0.00022,7]
[404505296,1770228647454,-151.0,0.00022,2]
[404505297,1770228647463,-103309.55230311,0.00022,4]
[404505298,1770228647472,-500.0,0.00022,15]
[404505299,1770228647482,-163.8,0.00022,2]
[404505300,1770228647491,-266823.94037064,0.00022,4]
[404505301,1770228647500,-9660.8,0.00022,7]
[404505302,1770228647510,-200.0,0.00022,5]
[404505303,1770228647519,-160.0,0.00022,7]
[404505304,1770228647528,-254.77354797,0.00022028,2]
[404505305,1770228647538,-242.15909246,0.00022031,2]
[404505306,1770228647547,-350.0,0.00022068,2]
[404505307,1770228647556,-495.18163607,0.000221,2]
[404505308,1770228647567,-240.61663487,0.0002211,2]
[404505309,1770228647576,-550.0,0.00022164,2]
[404505310,1770228647586,-1999.0,0.00022192,2]
[404505311,1770228647595,-188.05,0.000222,120]
[404505312,1770228647605,-359.60000876,0.00022222,30]
[404505313,1770228647614,-152.0,0.00022234,6]
[404505314,1770228647624,-200.0,0.00022263,2]
[404505315,1770228647635,-150.0,0.00022287,2]
[404505316,1770228647644,-150.0,0.00022287,2]
[404505317,1770228647653,-150.0,0.00022287,2]
[404505318,1770228647662,-150.0,0.00022287,2]
[404505319,1770228647675,-1335.0,0.00022287,2]
[404505320,1770228647684,-1410.0,0.00022287,2]
[404505321,1770228647694,-1271.0,0.00022287,2]
[404505322,1770228647703,-1205.0,0.00022287,2]
[404505323,1770228647714,-917.0,0.00022287,2]
[404505324,1770228647724,-3253.0,0.00022287,2]
[404505325,1770228647737,-6580.0,0.00022287,2]
[404505326,1770228647748,-1317.0,0.00022287,2]
[404505327,1770228647758,-200.0,0.00022337,2]
[404505328,1770228647768,-200.0,0.00022343,2]
[404505329,1770228647778,-190.57496538,0.00022356,2]
[404505330,1770228647788,-533.0,0.00022393,6]
[404505331,1770228647798,-151.45333834,0.0002247,2]
[404505332,1770228647808,-5607.81,0.00022481,2]
[404505333,1770228647819,-35548.02021924,0.000225,2]
[404505334,1770228647829,-373.07297731,0.00022575,2]
[404505335,1770228647838,-621.78829552,0.00022577,2]
[404505336,1770228647848,-642.98648515,0.00022577,2]
[404505337,1770228647858,-251.11897888,0.00022579,2]
[404505338,1770228647867,-3610.4554909,0.000226,2]
[404505339,1770228647877,-399664.49451434,0.000226,7]
[404505340,1770228647886,-255.87634183,0.000226,2]
[404505341,1770228647896,-916.5,0.000226,4]
[404505342,1770228647905,-450.0,0.00022616,2]
[404505343,1770228647915,-200.0,0.00022636,2]
[404505344,1770228647928,-152.0,0.00022698,7]
[404505345,1770228647937,-9660.8,0.000227,7]
[404505346,1770228647948,-524.01260836,0.0002271,2]
[404505347,1770228647960,-650.0,0.00022712,2]
[404505348,1770228647970,-11489.58,0.0002274,2]
[404505349,1770228647980,-500.0,0.0002277,2]
[404505350,1770228647989,-166.0,0.00022946,120]
[404505351,1770228647998,-1009.29926928,0.00023,2]
[404505352,1770228648008,-227470.03564037,0.00023,2]
[404505353,1770228648019,-637.34097444,0.00023,7]
[404505354,1770228648028,-1000.0,0.00023,14]
[404505355,1770228648038,-151.0,0.00023,2]
[404505356,1770228648047,-151.0,0.00023,2]
[404505357,1770228648056,-12652.96909602,0.00023,2]
[404505358,1770228648065,-200.0,0.00023,5]
[404505359,1770228648075,-160.0,0.00023,7]
[404505360,1770228648085,-160.0,0.00023,2]
[404505361,1770228648095,-450.0,0.00023,2]
[404505362,1770228648104,-163.0,0.00023,7]
[404505363,1770228648114,-165.0,0.00023,7]
[404505364,1770228648123,-166.0,0.00023003,120]
[404505365,1770228648132,-533.0,0.00023019,6]
[404505366,1770228648143,-151.45333847,0.00023062,2]
[404505367,1770228648153,-150.0,0.000231,2]
[404505368,1770228648162,-260.4103811,0.00023127,2]
[404505369,1770228648174,-152.0,0.00023162,8]
[404505370,1770228648184,-550.0,0.00023164,2]
[404505371,1770228648195,-473.77221156,0.000232,2]
[404505372,1770228648205,-151.0,0.0002323,2]
[404505373,1770228648215,-750.0,0.0002326,2]
[404505374,1770228648224,-163.0,0.00023288,7]
[404505375,1770228648234,-9660.8,0.000234,7]
[404505376,1770228648245,-5000.0,0.0002343,2]
[404505377,1770228648254,-1000.0,0.00023448,2]
[404505378,1770228648263,-200.0,0.000235,2]
[404505379,1770228648273,-6508.37,0.000235,2]
[404505380,1770228648283,-179.0,0.00023561,120]
[404505381,1770228648292,-180.0,0.00023561,120]
[404505382,1770228648301,-152.0,0.00023625,9]
[404505383,1770228648310,-533.0,0.00023646,7]
[404505384,1770228648319,-270.0455652,0.00023675,2]
[404505385,1770228648329,-650.0,0.00023712,2]
[404505386,1770228648339,-546.7769805,0.00023808,2]
[404505387,1770228648350,-1000.0,0.00023834,2]
[404505388,1770228648360,-386.87667747,0.00023944,2]
[404505389,1770228648370,-1022.82529235,0.00024,2]
[404505390,1770228648381,-3600.0,0.00024,2]
[404505391,1770228648392,-1236.95968522,0.00024,2]
[404505392,1770228648403,-10391.68605232,0.00024,14]
[404505393,1770228648417,-160.0,0.00024,7]
[404505394,1770228648431,-200.0,0.00024,5]
[404505395,1770228648442,-152.0,0.00024089,10]
[404505396,1770228648452,-9660.8,0.000241,7]
[404505397,1770228648463,-163.0,0.00024164,7]
[404505398,1770228648472,-165.0,0.00024164,7]
[404505399,1770228648483,-422.6060654,0.0002421,2]
[404505400,1770228648492,-3701.96913306,0.0002421,2]
[404505401,1770228648502,-280.03725112,0.00024223,2]
[404505402,1770228648511,-750.0,0.0002426,2]
[404505403,1770228648521,-533.0,0.00024272,7]
[404505404,1770228648530,-7309.39789453,0.0002439,2]
[404505405,1770228648540,-359.60000876,0.00024444,30]
[404505406,1770228648550,-1113.52567697,0.000245,2]
[404505407,1770228648561,-152.0,0.00024552,11]
[404505408,1770228648571,-167.83663657,0.0002465,2]
[404505409,1770228648582,-2000.0,0.00024657,12]
[404505410,1770228648592,-1000.0,0.00024658,2]
[404505411,1770228648601,-1533.06,0.00024658,2]
[404505412,1770228648611,-151.0,0.00024658,2]
[404505413,1770228648621,-151.0,0.00024658,2]
[404505414,1770228648630,-151.0,0.00024658,2]
[404505415,1770228648640,-151.0,0.00024658,2]
[404505416,1770228648650,-151.0,0.00024658,2]
[404505417,1770228648659,-151.0,0.00024658,2]
[404505418,1770228648672,-151.0,0.00024658,2]
[404505419,1770228648683,-151.0,0.00024658,2]
[404505420,1770228648692,-151.0,0.00024658,2]
[404505421,1770228648702,-151.0,0.00024658,2]
[404505422,1770228648711,-151.0,0.00024658,2]
[404505423,1770228648720,-151.0,0.00024658,2]
[404505424,1770228648730,-150.0,0.00024658,2]
[404505425,1770228648739,-6508.37,0.000247,2]
[404505426,1770228648748,-3302.06,0.000247,14]
[404505427,1770228648758,-290.39862941,0.00024771,2]
[404505428,1770228648767,-182.12281547,0.00024808,2]
[404505429,1770228648777,-1000.0,0.00024834,2]
[404505430,1770228648786,-533.0,0.00024898,8]
[404505431,1770228648795,-4764.45683305,0.000249,7]
[404505432,1770228648805,-9660.8,0.000249,7]
[404505433,1770228648816,-588.4,0.000249,2]
[404505434,1770228648825,-609348.726389,0.000249,2]
[404505435,1770228648835,-216.0,0.0002493,30]
[404505436,1770228648844,-1113.03500578,0.00025,2]
[404505437,1770228648853,-207.35966515,0.00025,2]
[404505438,1770228648863,-1783.44778021,0.00025,2]
[404505439,1770228648872,-506.23131385,0.00025,2]
[404505440,1770228648881,-540.0,0.00025,2]
[404505441,1770228648892,-610.45936052,0.00025,2]
[404505442,1770228648901,-3042.07462426,0.00025,2]
[404505443,1770228648911,-7120.34427007,0.00025,2]
[404505444,1770228648923,-1063.82378759,0.00025,2]
[404505445,1770228648933,-167.2007972,0.00025,2]
[404505446,1770228648942,-170.89294905,0.00025,5]
[404505447,1770228648952,-531.0,0.00025,5]
[404505448,1770228648961,-150.0,0.00025,17]
[404505449,1770228648971,-1000.0,0.00025,20]
[404505450,1770228648980,-1000.0,0.00025,20]
[404505451,1770228648990,-1000.0,0.00025,20]
[404505452,1770228648999,-1000.0,0.00025,20]
[404505453,1770228649008,-1000.0,0.00025,20]
[404505454,1770228649018,-1000.0,0.00025,20]
[404505455,1770228649027,-1000.0,0.00025,20]
[404505456,1770228649037,-1000.0,0.00025,20]
[404505457,1770228649047,-1000.0,0.00025,20]
[404505458,1770228649057,-1000.0,0.00025,20]
[404505459,1770228649067,-1000.0,0.00025,20]
[404505460,1770228649076,-1000.0,0.00025,20]
[404505461,1770228649085,-1000.0,0.00025,20]
[404505462,1770228649095,-1000.0,0.00025,20]
[404505463,1770228649104,-1000.0,0.00025,20]
[404505464,1770228649114,-1000.0,0.00025,20]
[404505465,1770228649123,-1000.0,0.00025,20]
[404505466,1770228649133,-1000.0,0.00025,20]
[404505467,1770228649143,-1000.0,0.00025,20]
[404505468,1770228649154,-1000.0,0.00025,20]
[404505469,1770228649162,-1000.0,0.00025,20]
[404505470,1770228649176,-1000.0,0.00025,20]
[404505471,1770228649186,-1000.0,0.00025,20]
[404505472,1770228649196,-1000.0,0.00025,20]
[404505473,1770228649206,-1000.0,0.00025,20]
[404505474,1770228649215,-1000.0,0.00025,20]
[404505475,1770228649225,-1000.0,0.00025,20]
[404505476,1770228649235,-1000.0,0.00025,20]
[404505477,1770228649244,-1000.0,0.00025,20]
[404505478,1770228649253,-1000.0,0.00025,20]
[404505479,1770228649263,-1000.0,0.00025,20]
[404505480,1770228649274,-1000.0,0.00025,20]
[404505481,1770228649283,-804.59,0.00025,20]
[404505482,1770228649292,-151.0,0.00025,2]
[404505483,1770228649302,-324.0,0.00025,15]
[404505484,1770228649311,-1111.86380934,0.00025,60]
[404505485,1770228649320,-681.73055772,0.00025,60]
[404505486,1770228649331,-725.15524612,0.00025,30]
[404505487,1770228649343,-300.0,0.00025,14]
[404505488,1770228649352,-150.0,0.00025,2]
[404505489,1770228649361,-150.0,0.00025,2]
[404505490,1770228649371,-150.0,0.00025,2]
[404505491,1770228649380,-150.0,0.00025,2]
[404505492,1770228649389,-150.0,0.00025,2]
[404505493,1770228649398,-150.0,0.00025,2]
[404505494,1770228649409,-150.0,0.00025,2]
[404505495,1770228649422,-150.0,0.00025,2]
[404505496,1770228649430,-150.0,0.00025,2]
[404505497,1770228649440,-150.0,0.00025,2]
[404505498,1770228649449,-150.0,0.00025,2]
[404505499,1770228649459,-150.0,0.00025,2]
[404505500,1770228649468,-295.933,0.00025,2]
[404505501,1770228649477,-150.0,0.00025,2]
[404505502,1770228649486,-1320.86520044,0.00025,4]
[404505503,1770228649496,-7000.0,0.00025,2]
[404505504,1770228649505,-200.0,0.00025,5]
[404505505,1770228649514,-500.0,0.00025,2]
[404505506,1770228649524,-152.0,0.00025016,12]
[404505507,1770228649533,-155.0,0.00025199,2]
[404505508,1770228649543,-4308.0,0.0002523,2]
[404505509,1770228649552,-1335.0,0.00025287,2]
[404505510,1770228649562,-1410.0,0.00025287,2]
[404505511,1770228649571,-1271.0,0.00025287,2]
[404505512,1770228649580,-1205.0,0.00025287,2]
[404505513,1770228649590,-917.0,0.00025287,2]
[404505514,1770228649600,-3253.0,0.00025287,2]
[404505515,1770228649609,-6580.0,0.00025287,2]
[404505516,1770228649618,-1317.0,0.00025287,2]
[404505517,1770228649627,-401.19111454,0.00025313,2]
[404505518,1770228649636,-644.79446246,0.00025316,2]
[404505519,1770228649647,-301.1433787,0.00025319,2]
[404505520,1770228649656,-154.9684371,0.0002537,30]
[404505521,1770228649669,-169.0,0.00025373,7]
[404505522,1770228649679,-152.0,0.0002538,2]
[404505523,1770228649688,-49492.42298363,0.0002539,2]
[404505524,1770228649698,-152.0,0.0002548,13]
[404505525,1770228649708,-4308.0,0.0002549,2]
[404505526,1770228649717,-533.0,0.00025524,9]
[404505527,1770228649727,-154.9684371,0.00025562,30]
[404505528,1770228649736,-500.0,0.0002557,2]
[404505529,1770228649745,-1000.0,0.00025579,2]
[404505530,1770228649756,-500.0,0.00025699,2]
[404505531,1770228649765,-9660.8,0.000257,7]
[404505532,1770228649775,-4308.0,0.0002575,2]
[404505533,1770228649784,-154.9684371,0.00025753,30]
[404505534,1770228649794,-1000.0,0.00025834,2]
[404505535,1770228649805,-7309.39789453,0.00025896,2]
[404505536,1770228649815,-154.9684371,0.00025918,30]
[404505537,1770228649824,-152.0,0.00025943,14]
[404505538,1770228649833,-600.46547227,0.0002599,2]
[404505539,1770228649843,-4519.55498247,0.00026,2]
[404505540,1770228649852,-216.32944453,0.00026,2]
[404505541,1770228649862,-150.0,0.00026,20]
[404505542,1770228649873,-231.2,0.00026,2]
[404505543,1770228649883,-200.0,0.00026,5]
[404505544,1770228649892,-4308.0,0.0002601,2]
[404505545,1770228649903,-154.9684371,0.0002611,30]
[404505546,1770228649912,-533.0,0.0002615,9]
[404505547,1770228649925,-6508.37,0.000262,2]
[404505548,1770228649935,-4308.0,0.0002627,2]
[404505549,1770228649944,-154.9684371,0.00026301,30]
[404505550,1770228649953,-2446.571246,0.00026387,30]
[404505551,1770228649962,-1158.285879,0.00026387,30]
[404505552,1770228649971,-27455.26394238,0.000264,2]
[404505553,1770228649981,-9660.8,0.000264,7]
[404505554,1770228649990,-152.0,0.00026407,15]
[404505555,1770228649999,-154.9684371,0.00026493,30]
[404505556,1770228650008,-4308.0,0.0002653,2]
[404505557,1770228650017,-359.60000876,0.00026667,30]
[404505558,1770228650026,-416.03518578,0.00026682,2]
[404505559,1770228650036,-533.0,0.00026776,10]
[404505560,1770228650047,-4308.0,0.0002679,2]
[404505561,1770228650059,-1000.0,0.00026834,2]
[404505562,1770228650068,-152.0,0.0002687,16]
[404505563,1770228650078,-250.0,0.00027,2]
[404505564,1770228650087,-1033.83999388,0.00027,2]
[404505565,1770228650098,-530.0,0.00027,2]
[404505566,1770228650107,-150.0,0.00027,23]
[404505567,1770228650118,-344.54104389,0.00027,5]
[404505568,1770228650127,-2000.0,0.00027,2]
[404505569,1770228650136,-550.0,0.00027,2]
[404505570,1770228650147,-2469.378123,0.0002701,2]
[404505571,1770228650156,-163.0,0.00027064,7]
[404505572,1770228650167,-3347.86963037,0.00027122,2]
[404505573,1770228650176,-3685.94,0.00027123,2]
[404505574,1770228650186,-150.0,0.00027123,2]
[404505575,1770228650195,-152.0,0.00027334,17]
[404505576,1770228650204,-150.0,0.00027369,2]
[404505577,1770228650213,-1076.07692308,0.0002737,2]
[404505578,1770228650223,-697.38461538,0.0002737,2]
[404505579,1770228650232,-918.92307692,0.0002737,2]
[404505580,1770228650241,-478.15384615,0.0002737,2]
[404505581,1770228650252,-812.07692308,0.0002737,2]
[404505582,1770228650261,-1050.23076923,0.0002737,2]
[404505583,1770228650270,-573.92307692,0.0002737,2]
[404505584,1770228650279,-1055.53846154,0.0002737,2]
[404505585,1770228650288,-913.84615385,0.0002737,2]
[404505586,1770228650296,-828.46153846,0.0002737,2]
[404505587,1770228650468,-772.61538462,0.0002737,2]
[404505588,1770228650478,-674.93182143,0.0002737,2]
[404505589,1770228650487,-516.69230769,0.0002737,2]
[404505590,1770228650496,-399.94163779,0.0002737,2]
[404505591,1770228650505,-307.64741369,0.0002737,2]
[404505592,1770228650515,-236.65185668,0.0002737,2]
[404505593,1770228650524,-182.03988975,0.0002737,2]
[404505594,1770228650533,-416.95376135,0.0002737,2]
[404505595,1770228650542,-320.73366258,0.0002737,2]
[404505596,1770228650551,-246.71820198,0.0002737,2]
[404505597,1770228650561,-189.78323229,0.0002737,2]
[404505598,1770228650570,-197.81278193,0.0002737,2]
[404505599,1770228650579,-152.16367841,0.0002737,2]
[404505600,1770228650588,-293.19093384,0.0002737,2]
[404505601,1770228650597,-225.53148757,0.0002737,2]
[404505602,1770228650606,-173.48575967,0.0002737,2]
[404505603,1770228650615,-485.76923077,0.0002737,2]
[404505604,1770228650624,-474.11922342,0.0002737,2]
[404505605,1770228650635,-364.70709493,0.0002737,2]
[404505606,1770228650644,-280.54391918,0.0002737,2]
[404505607,1770228650653,-215.80301475,0.0002737,2]
[404505608,1770228650662,-166.00231904,0.0002737,2]
[404505609,1770228650674,-235.17361169,0.0002737,2]
[404505610,1770228650683,-180.90277822,0.0002737,2]
[404505611,1770228650692,-4109.2710984,0.0002739,2]
[404505612,1770228650702,-8116.88070918,0.0002739,2]
[404505613,1770228650711,-4415.24973909,0.0002739,7]
[404505614,1770228650721,-200.93065936,0.0002739,120]
[404505615,1770228650730,-2000.0,0.00027397,22]
[404505616,1770228650740,-220.0,0.00027397,2]
[404505617,1770228650750,-240.78902817,0.00027397,2]
[404505618,1770228650759,-519.17,0.00027397,2]
[404505619,1770228650769,-1047.94,0.00027397,30]
[404505620,1770228650779,-1533.06,0.00027397,2]
[404505621,1770228650788,-1446.55,0.00027397,2]
[404505622,1770228650798,-750.0,0.00027397,20]
[404505623,1770228650807,-300.0,0.00027397,2]
[404505624,1770228650816,-152.700087,0.00027397,7]
[404505625,1770228650826,-151.0,0.00027397,7]
[404505626,1770228650835,-151.0,0.00027397,7]
[404505627,1770228650845,-789.895855,0.00027397,7]
[404505628,1770228650854,-789.895855,0.00027397,7]
[404505629,1770228650864,-211.25446057,0.00027397,4]
[404505630,1770228650874,-150.0,0.00027397,5]
[404505631,1770228650884,-150.0,0.00027397,5]
[404505632,1770228650893,-159.31326097,0.00027397,5]
[404505633,1770228650903,-519.95921922,0.00027397,5]
[404505634,1770228650912,-160.0,0.000274,30]
[404505635,1770228650925,-2000.0,0.000274,2]
[404505636,1770228650935,-533.0,0.00027403,10]
[404505637,1770228650944,-201.16607571,0.000275,2]
[404505638,1770228650953,-549.5399694,0.000275,2]
[404505639,1770228650963,-2000.0,0.000275,15]
[404505640,1770228650972,-871.77,0.000275,7]
[404505641,1770228650983,-2500.0,0.000275,2]
[404505642,1770228650992,-6508.37,0.000276,2]
[404505643,1770228651004,-152.0,0.00027798,18]
[404505644,1770228651013,-1000.0,0.00027834,2]
[404505645,1770228651023,-250.0,0.00027945,5]
[404505646,1770228651032,-250.0,0.00027945,5]
[404505647,1770228651041,-71295.84627162,0.00028,2]
[404505648,1770228651051,-50839.22476358,0.00028,2]
[404505649,1770228651059,-160.0,0.00028,2]
[404505650,1770228651069,-150.0,0.00028,26]
[404505651,1770228651078,-151.0,0.00028,2]
[404505652,1770228651088,-1500.0,0.00028,2]
[404505653,1770228651098,-533.0,0.00028029,11]
[404505654,1770228651107,-431.42848765,0.00028051,2]
[404505655,1770228651116,-247.57758345,0.00028055,2]
[404505656,1770228651125,-152.0,0.00028261,19]
[404505657,1770228651135,-1335.0,0.00028287,2]
[404505658,1770228651145,-1410.0,0.00028287,2]
[404505659,1770228651154,-1271.0,0.00028287,2]
[404505660,1770228651164,-1205.0,0.00028287,2]
[404505661,1770228651178,-917.0,0.00028287,2]
[404505662,1770228651188,-3253.0,0.00028287,2]
[404505663,1770228651197,-6580.0,0.00028287,2]
[404505664,1770228651207,-1317.0,0.00028287,2]
[404505665,1770228651216,-500.0,0.00028371,2]
[404505666,1770228651226,-200.0,0.000284,120]
[404505667,1770228651235,-1634.313,0.000284,3]
[404505668,1770228651245,-1634.313,0.000284,2]
[404505669,1770228651255,-224.70934148,0.00028448,120]
[404505670,1770228651265,-350.0,0.00028493,5]
[404505671,1770228651274,-350.0,0.00028493,5]
[404505672,1770228651284,-151.0,0.000285,5]
[404505673,1770228651294,-1500.0,0.000285,2]
[404505674,1770228651304,-533.0,0.00028655,11]
[404505675,1770228651314,-523.84160359,0.00028689,30]
[404505676,1770228651324,-152.0,0.00028725,20]
[404505677,1770228651338,-163.0,0.00028756,14]
[404505678,1770228651348,-1000.0,0.00028834,2]
[404505679,1770228651359,-359.60000876,0.00028889,30]
[404505680,1770228651368,-7309.39789453,0.0002891,2]
[404505681,1770228651378,-163.0,0.00028997,14]
[404505682,1770228651388,-502.16240068,0.00029,2]
[404505683,1770228651398,-150.0,0.00029,29]
[404505684,1770228651407,-765.60640373,0.00029,120]
[404505685,1770228651422,-230.0,0.00029,120]
[404505686,1770228651434,-9660.8,0.00029,7]
[404505687,1770228651443,-600.0,0.00029,2]
[404505688,1770228651452,-1500.0,0.00029,2]
[404505689,1770228651462,-450.0,0.00029041,5]
[404505690,1770228651471,-450.0,0.00029041,5]
[404505691,1770228651480,-152.0,0.00029188,21]
[404505692,1770228651489,-533.0,0.00029281,12]
[404505693,1770228651498,-447.3913417,0.0002942,2]
[404505694,1770228651508,-1000.0,0.000295,2]
[404505695,1770228651518,-1500.0,0.000295,2]
[404505696,1770228651527,-439.30108092,0.00029589,5]
[404505697,1770228651536,-550.0,0.00029589,5]
[404505698,1770228651545,-6508.37,0.000296,2]
[404505699,1770228651555,-152.0,0.00029652,22]
[404505700,1770228651564,-1000.0,0.00029834,2]
[404505701,1770228651572,-150.0,0.00029836,2]
[404505702,1770228651582,-78913.64205145,0.000299,2]
[404505703,1770228651591,-533.0,0.00029907,13]
[404505704,1770228651600,-237.32323537,0.0002999,2]
[404505705,1770228651609,-272.0,0.0003,2]
[404505706,1770228651618,-160.0,0.0003,2]
[404505707,1770228651627,-5000.09169198,0.0003,3]
[404505708,1770228651636,-19877.02626782,0.0003,2]
[404505709,1770228651645,-1818.37824843,0.0003,2]
[404505710,1770228651654,-163.10543857,0.0003,2]
[404505711,1770228651664,-25723.2440204,0.0003,7]
[404505712,1770228651681,-802.33016771,0.0003,7]
[404505713,1770228651690,-151.0,0.0003,2]
[404505714,1770228651700,-5048.86993402,0.0003,7]
[404505715,1770228651710,-150.0,0.0003,2]
[404505716,1770228651720,-250.0,0.0003,32]
[404505717,1770228651729,-487.68955707,0.0003,7]
[404505718,1770228651740,-487.68955707,0.0003,7]
[404505719,1770228651749,-200.0,0.0003,120]
[404505720,1770228651759,-250.09740981,0.0003,12]
[404505721,1770228651769,-242.53217443,0.0003,30]
[404505722,1770228651779,-151.30203795,0.0003,120]
[404505723,1770228651789,-487.18554968,0.0003,30]
[404505724,1770228651799,-7008.0,0.0003,2]
[404505725,1770228651809,-2000.00924997,0.0003,2]
[404505726,1770228651819,-160.0,0.0003,3]
[404505727,1770228651828,-160.0,0.0003,3]
[404505728,1770228651838,-160.0,0.0003,30]
[404505729,1770228651847,-160.0,0.0003,30]